fUSD/lending_fUSD_20260109
["ID","MTS","AMOUNT","RATE_DAILY","PERIOD"]
[401161230,1767997843621,-25000.0,0.000179,3]
[401161231,1767997843634,-151.0,0.000179,2]
[401161232,1767997843643,-151.0,0.000179,2]
[401161233,1767997843653,-565.17771938,0.000179,2]
[401161234,1767997843663,-151.0,0.000179,2]
[401161235,1767997843673,-151.0,0.000179,2]
[401161236,1767997843683,-10129.04011648,0.000179,3]
[401161237,1767997843693,-151.0,0.000179,2]
[401161238,1767997843702,-219.18437703,0.000179,2]
[401161239,1767997843712,-6920.32461671,0.000179,2]
[401161240,1767997843722,-1682.642727,0.000179,2]
[401161241,1767997843732,-1682.64272699,0.000179,2]
[401161242,1767997843741,-1682.64272699,0.000179,2]
[401161243,1767997843751,-1682.64272699,0.000179,2]
[401161244,1767997843761,-1682.64272699,0.000179,2]
[401161245,1767997843772,-1682.64272699,0.000179,2]
[401161246,1767997843783,-1682.64272699,0.000179,2]
[401161247,1767997843792,-4190.04146351,0.000179,2]
[401161248,1767997843802,-1682.64272699,0.000179,2]
[401161249,1767997843812,-1682.64272699,0.000179,2]
[401161250,1767997843822,-1682.64272699,0.000179,2]
[401161251,1767997843831,-1682.64272699,0.000179,2]
[401161252,1767997843841,-1682.64272699,0.000179,2]
[401161253,1767997843851,-5419.66632669,0.000179,2]
[401161254,1767997843860,-1682.64272699,0.000179,2]
[401161255,1767997843870,-5226.64949991,0.000179,2]
[401161256,1767997843881,-500.0,0.000179,2]
[401161257,1767997843891,-500.0,0.000179,2]
[401161258,1767997843901,-500.0,0.000179,2]
[401161259,1767997843910,-500.0,0.000179,2]
[401161260,1767997843919,-500.0,0.000179,2]
[401161261,1767997843929,-500.0,0.000179,2]
[401161262,1767997843939,-500.0,0.000179,2]
[401161263,1767997843949,-500.0,0.000179,2]
[401161264,1767997843959,-500.0,0.000179,2]
[401161265,1767997843969,-500.0,0.000179,2]
[401161266,1767997843980,-500.0,0.000179,2]
[401161267,1767997843990,-500.0,0.000179,2]
[401161268,1767997843999,-500.0,0.000179,2]
[401161269,1767997844010,-500.0,0.000179,2]
[401161270,1767997844024,-500.0,0.000179,2]
[401161271,1767997844034,-500.0,0.000179,2]
[401161272,1767997844044,-500.0,0.000179,2]
[401161273,1767997844054,-500.0,0.000179,2]
[401161274,1767997844064,-500.0,0.000179,2]
[401161275,1767997844074,-500.0,0.000179,2]
[401161276,1767997844084,-500.0,0.000179,2]
[401161277,1767997844094,-500.0,0.000179,2]
[401161278,1767997844105,-500.0,0.000179,2]
[401161279,1767997844115,-500.0,0.000179,2]
[401161280,1767997844125,-500.0,0.000179,2]
[401161281,1767997844135,-500.0,0.000179,2]
[401161282,1767997844145,-500.0,0.000179,2]
[401161283,1767997844156,-500.0,0.000179,2]
[401161284,1767997844167,-500.0,0.000179,2]
[401161285,1767997844177,-500.0,0.000179,2]
[401161286,1767997844187,-500.0,0.000179,2]
[401161287,1767997844197,-324.05870169,0.000179,2]
[401161288,1767997844207,-7358.0,0.000179,2]
[401161289,1767997844217,-500.0,0.00017973,2]
[401161290,1767997844227,-500.0,0.00017973,2]
[401161291,1767997844236,-500.0,0.00017973,2]
[401161292,1767997844247,-500.0,0.00017973,2]
[401161293,1767997844258,-500.0,0.00017973,2]
[401161294,1767997844268,-500.0,0.00017973,2]
[401161295,1767997844279,-500.0,0.00017973,2]
[401161296,1767997844289,-279.31517583,0.00017973,2]
[401161297,1767997844299,-150.0,0.00017973,2]
[401161298,1767997844309,-500.0,0.00017973,2]
[401161299,1767997844319,-500.0,0.00017973,2]
[401161300,1767997844330,-500.0,0.00017973,2]
[401161301,1767997844340,-500.0,0.00017973,2]
[401161302,1767997844351,-500.0,0.00017973,2]
[401161303,1767997844361,-500.0,0.00017973,2]
[401161304,1767997844377,-500.0,0.00017973,2]
[401161305,1767997844388,-500.0,0.00017973,2]
[401161306,1767997844398,-500.0,0.00017973,2]
[401161307,1767997844408,-500.0,0.00017973,2]
[401161308,1767997844418,-500.0,0.00017973,2]
[401161309,1767997844429,-578.02071049,0.00017973,2]
[401161310,1767997844439,-501.05787152,0.00017973,2]
[401161311,1767997844450,-500.0,0.00017973,2]
[401161312,1767997844460,-609.94892981,0.00017973,2]
[401161313,1767997844470,-515.27642925,0.00017973,2]
[401161314,1767997844480,-168.53464326,0.00017973,2]
[401161315,1767997844491,-195.06667749,0.00017973,2]
[401161316,1767997844501,-500.0,0.00017973,2]
[401161317,1767997844511,-429.09119552,0.00017973,2]
[401161318,1767997844522,-500.0,0.00017973,2]
[401161319,1767997844532,-500.0,0.00017973,2]
[401161320,1767997844542,-500.0,0.00017973,2]
[401161321,1767997844552,-579.00077669,0.00017973,2]
[401161322,1767997844563,-500.0,0.00017973,2]
[401161323,1767997844573,-500.0,0.00017973,2]
[401161324,1767997844583,-500.0,0.00017973,2]
[401161325,1767997844596,-500.0,0.00017973,2]
[401161326,1767997844607,-500.0,0.00017973,2]
[401161327,1767997844617,-500.0,0.00017973,2]
[401161328,1767997844627,-500.0,0.00017973,2]
[401161329,1767997844637,-500.0,0.00017973,2]
[401161330,1767997844647,-500.0,0.00017973,2]
[401161331,1767997844657,-500.0,0.00017973,2]
[401161332,1767997844668,-182.86859792,0.00017973,2]
[401161333,1767997844678,-500.0,0.00017973,2]
[401161334,1767997844688,-500.0,0.00017973,2]
[401161335,1767997844699,-500.0,0.00017973,2]
[401161336,1767997844709,-286.84842062,0.00017973,2]
[401161337,1767997844719,-500.0,0.00017973,2]
[401161338,1767997844730,-500.0,0.00017973,2]
[401161339,1767997844745,-500.0,0.00017973,2]
[401161340,1767997844756,-546.15438132,0.00017973,2]
[401161341,1767997844766,-500.0,0.00017973,2]
[401161342,1767997844777,-500.0,0.00017973,2]
[401161343,1767997844788,-500.0,0.00017973,2]
[401161344,1767997844798,-398.03125352,0.00017973,2]
[401161346,1767997844809,-500.0,0.00017973,2]
[401161348,1767997844819,-165.3256661,0.00017973,2]
[401161350,1767997844829,-500.0,0.00017973,2]
[401161352,1767997844840,-500.0,0.00017973,2]
[401161354,1767997844851,-500.0,0.00017973,2]
[401161356,1767997844861,-500.0,0.00017973,2]
[401161358,1767997844871,-554.86072459,0.00017973,2]
[401161360,1767997844882,-150.0,0.00017973,2]
[401161362,1767997844892,-150.0,0.00017973,2]
[401161364,1767997844902,-161.78,0.00017977,2]
[401161365,1767997844913,-500.0,0.00017982,2]
[401161366,1767997844923,-152.75103688,0.00017982,2]
[401161367,1767997844933,-329.86376236,0.0001799,2]
[401161368,1767997844944,-329.86376236,0.0001799,2]
[401161369,1767997844955,-5217.7474777,0.00017997,2]
[401161370,1767997844964,-303984.0773892,0.00017997,2]
[401161371,1767997844975,-15653.242433,0.00017997,2]
[401161372,1767997844985,-151.0,0.00017997,2]
[401161373,1767997844996,-151.0,0.00017997,2]
[401161374,1767997845006,-151.0,0.00017997,2]
[401161375,1767997845016,-151.0,0.00017997,2]
[401161376,1767997845028,-151.0,0.00017997,2]
[401161377,1767997845039,-182.690621,0.00017997,2]
[401161378,1767997845049,-151.0,0.00017997,2]
[401161379,1767997845059,-151.0,0.00017997,2]
[401161380,1767997845069,-151.0,0.00017997,2]
[401161381,1767997845080,-151.0,0.00017997,2]
[401161382,1767997845094,-151.0,0.00017997,2]
[401161383,1767997845104,-682.725225,0.00017997,2]
[401161384,1767997845114,-151.0,0.00017997,2]
[401161385,1767997845125,-682.725225,0.00017997,2]
[401161386,1767997845135,-682.725225,0.00017997,2]
[401161387,1767997845146,-682.725225,0.00017997,2]
[401161388,1767997845157,-261.78722899,0.00017999,2]
[401161389,1767997845168,-300.0,0.00017999,2]
[401161390,1767997845179,-666.0,0.00017999,2]
[401161391,1767997845189,-300.0,0.00017999,2]
[401161392,1767997845200,-300.0,0.00017999,2]
[401161393,1767997845211,-666.0,0.00017999,2]
[401161394,1767997845222,-11541.22312061,0.00017999,2]
[401161395,1767997845233,-7824.46415432,0.00017999,2]
[401161396,1767997845243,-300.0,0.00017999,2]
[401161397,1767997845254,-666.0,0.00017999,2]
[401161398,1767997845265,-150.0,0.00017999,2]
[401161399,1767997845276,-300.0,0.00017999,2]
[401161400,1767997845289,-658083.53331348,0.00018,2]
[401161414,1767997846182,-29244.60056734,0.00018,2]
[401161415,1767997848705,-1000.0,0.00015918,2]
[401161416,1767997848715,-1000.0,0.00016515,2]
[401161417,1767997848724,-1000.0,0.00017112,2]
[401161418,1767997848734,-151.0,0.00017255,2]
[401161419,1767997848744,-1000.0,0.00017709,2]
[401161420,1767997848753,-300.14455791,0.000179,2]
[401161421,1767997848766,-1382.49816908,0.000179,2]
[401161422,1767997848776,-439.32198091,0.000179,2]
[401161423,1767997848788,-60.24309709,0.000179,2]
[401161424,1767997848799,-151.0,0.00017997,2]
[401161425,1767997848808,-849.09162243,0.00018,2]
[401161426,1767997848819,-86209.73267487,0.00018,2]
[401161427,1767997848831,-5545.5,0.00018,2]
[401161428,1767997848842,-26795.52080366,0.00018,2]
[401161429,1767997848883,-6797.77587023,0.00018,2]
[401161430,1767997849328,-151.0,0.00016005,2]
[401161431,1767997849339,-151.0,0.00016005,2]
[401161432,1767997849350,-42.63499176,0.00018,2]
[401161433,1767997849363,-557.96001026,0.00018,2]
[401161434,1767997849401,-424.00898094,0.00018,2]
[401161435,1767997849414,-389788.18110826,0.00018,2]
[401161436,1767997849613,-30454.88928705,0.00018,2]
[401161437,1767997849627,-344576.15786243,0.00018,2]
[401161438,1767997849651,-2060.48145238,0.00018,2]
[401161439,1767997849695,-6821.37901967,0.00018,2]
[401161440,1767997849708,-5760.08966899,0.00018,2]
[401161441,1767997849722,-1587.635991,0.00018,2]
[401161442,1767997849735,-521.50544742,0.00018,2]
[401161443,1767997849749,-25619.47134896,0.00018,2]
[401161444,1767997849789,-10465.32943902,0.00018,2]
[401161445,1767997849851,-540.52,0.00018,2]
[401161446,1767997849865,-4518.69606035,0.00018,2]
[401161447,1767997849887,-3100.0,0.00018,2]
[401161448,1767997849907,-404.73403491,0.00018,2]
[401161461,1767998305964,208.0,9.989e-05,2]
[401161462,1767998306145,154.36,9.989e-05,2]
[401161463,1767998306176,53.64,9.989e-05,2]
[401161464,1767998306299,208.0,9.989e-05,2]
[401161465,1767998306491,208.0,9.989e-05,2]
[401161561,1767999032809,-243.0,0.00011403,2]
[401161563,1767999032819,-311.28327944,0.00011403,2]
[401161566,1767999032829,-1200.0,0.0001146,2]
[401161568,1767999032839,-300.0,0.0001146,2]
[401161569,1767999032848,-20696.54383601,0.00011461,2]
[401161572,1767999032860,-25532.58854846,0.00011461,2]
[401161575,1767999032870,-106206.65664596,0.00012292,2]
[401161577,1767999032894,-172767.18156874,0.00012292,2]
[401161579,1767999032904,-47850.17370043,0.00012292,2]
[401161582,1767999032916,-196148.64985746,0.00012292,2]
[401161584,1767999032926,-160681.87114254,0.00012292,2]
[401161586,1767999032938,-30813.81503053,0.00012292,2]
[401161634,1767999032972,-22643.88928401,0.00012292,2]
[401161646,1767999033493,-399.30784984,0.00012292,2]
[401161648,1767999033506,-3293.30861604,0.00012292,2]
[401161650,1767999033520,-969.61981694,0.00012292,2]
[401161655,1767999033555,-454.69711136,0.00012292,2]
[401161657,1767999033567,-2450.9437083,0.00012292,2]
[401161662,1767999033631,-536.59491584,0.00012292,2]
[401161684,1767999033836,-3668.11136025,0.00012292,2]
[401161712,1767999034096,-9841.3503795,0.00012292,2]
[401161714,1767999034108,-5722.72505615,0.00012292,2]
[401161757,1767999038042,-278.37010461,0.00012192,2]
[401161758,1767999038052,-75.66460959,0.00012292,2]
[401161759,1767999038089,-1000.0,0.00012292,2]
[401161762,1767999040133,-219.04394016,0.00012291,2]
[401161763,1767999040142,-330.39018435,0.00012291,2]
[401161764,1767999040152,-225.86548255,0.00012291,2]
[401161765,1767999040162,-50423.3060145,0.00012292,2]
[401161766,1767999040174,-707.12359549,0.00012292,2]
[401161767,1767999040186,-476.67140789,0.00012292,2]
[401161768,1767999040256,-500.0,0.0001146,2]
[401161769,1767999040266,-274.89493614,0.00012292,2]
[401161770,1767999040279,-21295.43996509,0.00012292,2]
[401161771,1767999040288,-230.26346356,0.00012292,2]
[401161772,1767999040300,-300.0,0.00012543,2]
[401161773,1767999040310,-420.0,0.00012587,2]
[401161774,1767999040320,-1680.0,0.00012606,2]
[401161775,1767999040330,-157.79856203,0.00013699,2]
[401161776,1767999040341,-587.0,0.00013826,2]
[401161777,1767999040351,-2351.0,0.00013867,2]
[401161778,1767999040360,-183.99062804,0.00014352,2]
[401161779,1767999040371,-193.79940219,0.00014763,2]
[401161780,1767999040381,-333.04338534,0.00015028,2]
[401161781,1767999040391,-329.86376236,0.0001511,2]
[401161782,1767999040401,-1000000.0,0.0001512,2]
[401161783,1767999040411,-300.0,0.00015128,2]
[401161784,1767999040420,-338.7228,0.00015129,2]
[401161785,1767999040430,-1332.9361,0.00015129,2]
[401161786,1767999040440,-10407.7785,0.00015129,2]
[401161787,1767999040450,-166.68,0.00015166,2]
[401161788,1767999040460,-823.0,0.00015186,2]
[401161789,1767999040470,-183.99062804,0.00015215,2]
[401161790,1767999040480,-150.0,0.00015216,2]
[401161791,1767999040490,-5469.63784536,0.00015219,2]
[401161792,1767999040499,-500.0,0.0001522,2]
[401161793,1767999040509,-500.0,0.0001522,2]
[401161794,1767999040520,-500.0,0.0001522,2]
[401161795,1767999040531,-500.0,0.0001522,2]
[401161796,1767999040541,-500.0,0.0001522,2]
[401161797,1767999040550,-500.0,0.0001522,2]
[401161798,1767999040560,-500.0,0.0001522,2]
[401161799,1767999040571,-500.0,0.0001522,2]
[401161800,1767999040580,-500.0,0.0001522,2]
[401161801,1767999040591,-500.0,0.0001522,2]
[401161802,1767999040600,-500.0,0.0001522,2]
[401161803,1767999040610,-500.0,0.0001522,2]
[401161804,1767999040620,-500.0,0.0001522,2]
[401161805,1767999040630,-500.0,0.0001522,2]
[401161806,1767999040640,-500.0,0.0001522,2]
[401161807,1767999040651,-151.0,0.0001522,2]
[401161808,1767999040660,-151.0,0.0001522,2]
[401161809,1767999040670,-500.0,0.0001522,2]
[401161810,1767999040680,-200.0,0.0001522,2]
[401161811,1767999040690,-151.0,0.0001522,2]
[401161812,1767999040699,-500.0,0.0001522,2]
[401161813,1767999040709,-151.0,0.0001522,2]
[401161814,1767999040719,-500.0,0.0001522,2]
[401161815,1767999040729,-151.0,0.0001522,2]
[401161816,1767999040738,-151.0,0.0001522,2]
[401161817,1767999040748,-151.0,0.0001522,2]
[401161818,1767999040757,-151.0,0.0001522,2]
[401161819,1767999040767,-151.0,0.0001522,2]
[401161820,1767999040777,-151.0,0.0001522,2]
[401161821,1767999040786,-151.0,0.0001522,2]
[401161822,1767999040796,-151.0,0.0001522,2]
[401161823,1767999040806,-759.75,0.0001522,2]
[401161824,1767999040815,-1892.321,0.00015228,2]
[401161825,1767999040825,-180.808,0.00015228,2]
[401161826,1767999040834,-150.0,0.00015228,2]
[401161827,1767999040844,-3292.0,0.00015253,2]
[401161828,1767999040854,-219.18437706,0.00015315,2]
[401161829,1767999040864,-4703.98455,0.00015415,2]
[401161830,1767999040874,-759.75,0.00015494,2]
[401161831,1767999040884,-4703.98454991,0.00015691,2]
[401161832,1767999040894,-219.18437703,0.00015746,2]
[401161833,1767999040904,-759.75,0.00015768,2]
[401161834,1767999040913,-6920.32461671,0.00015813,2]
[401161835,1767999040923,-1000.0,0.00015905,2]
[401161836,1767999040934,-4703.98454991,0.00015967,2]
[401161837,1767999040943,-759.75,0.00016042,2]
[401161838,1767999040953,-6920.32461671,0.00016111,2]
[401161839,1767999040964,-219.18437703,0.00016177,2]
[401161840,1767999040974,-150.0,0.000162,2]
[401161841,1767999040983,-4703.98454991,0.00016243,2]
[401161842,1767999040994,-661.58,0.00016301,2]
[401161843,1767999041003,-759.75,0.00016316,2]
[401161844,1767999041013,-266.0,0.00016356,2]
[401161845,1767999041023,-6920.32461671,0.00016409,2]
[401161846,1767999041033,-600.0,0.00016438,2]
[401161847,1767999041043,-333.04338533,0.00016464,2]
[401161848,1767999041053,-4703.98454991,0.00016519,2]
[401161849,1767999041063,-500.0,0.00016521,2]
[401161850,1767999041073,-759.8,0.0001659,2]
[401161851,1767999041083,-219.18437703,0.00016608,2]
[401161852,1767999041092,-1000.0,0.00016642,2]
[401161853,1767999041103,-1152.0,0.0001668,2]
[401161854,1767999041113,-169.04,0.00016705,2]
[401161855,1767999041122,-6920.32461671,0.00016708,2]
[401161856,1767999041131,-4609.0,0.00016779,2]
[401161857,1767999041141,-4703.98454991,0.00016796,2]
[401161858,1767999041151,-661.58,0.00016904,2]
[401161859,1767999041160,-661.58,0.00016904,2]
[401161860,1767999041170,-600.0,0.00016986,2]
[401161861,1767999041180,-250.0,0.00017,2]
[401161862,1767999041190,-193.43465493,0.00017,2]
[401161863,1767999041200,-6920.32461671,0.00017006,2]
[401161864,1767999041210,-322.6107,0.00017036,2]
[401161865,1767999041220,-500.0,0.00017036,2]
[401161866,1767999041230,-500.0,0.00017036,2]
[401161867,1767999041240,-500.0,0.00017036,2]
[401161868,1767999041251,-500.0,0.00017036,2]
[401161869,1767999041260,-500.0,0.00017036,2]
[401161870,1767999041270,-500.0,0.00017036,2]
[401161871,1767999041280,-500.0,0.00017036,2]
[401161872,1767999041290,-500.0,0.00017036,2]
[401161873,1767999041303,-500.0,0.00017036,2]
[401161874,1767999041314,-500.0,0.00017036,2]
[401161875,1767999041324,-500.0,0.00017036,2]
[401161876,1767999041335,-500.0,0.00017036,2]
[401161877,1767999041344,-500.0,0.00017036,2]
[401161878,1767999041354,-500.0,0.00017036,2]
[401161879,1767999041364,-500.0,0.00017036,2]
[401161880,1767999041374,-500.0,0.00017036,2]
[401161881,1767999041383,-500.0,0.00017036,2]
[401161882,1767999041394,-500.0,0.00017036,2]
[401161883,1767999041404,-500.0,0.00017036,2]
[401161884,1767999041414,-500.0,0.00017036,2]
[401161885,1767999041424,-500.0,0.00017036,2]
[401161886,1767999041433,-571.49862836,0.00017036,2]
[401161887,1767999041443,-1000.0,0.00017036,2]
[401161888,1767999041453,-1000.0,0.00017036,2]
[401161889,1767999041462,-1000.0,0.00017036,2]
[401161890,1767999041472,-1000.0,0.00017036,2]
[401161891,1767999041482,-1000.0,0.00017036,2]
[401161892,1767999041492,-553.64373807,0.00017036,2]
[401161893,1767999041502,-1000.0,0.00017036,2]
[401161894,1767999041512,-1000.0,0.00017036,2]
[401161895,1767999041522,-1000.0,0.00017036,2]
[401161896,1767999041531,-250.0,0.00017036,2]
[401161897,1767999041541,-1000.0,0.00017036,2]
[401161898,1767999041551,-2000.0,0.00017036,2]
[401161899,1767999041561,-250.0,0.00017036,2]
[401161900,1767999041571,-1000.0,0.00017036,2]
[401161901,1767999041580,-2000.0,0.00017036,2]
[401161902,1767999041590,-250.0,0.00017036,2]
[401161903,1767999041599,-1000.0,0.00017036,2]
[401161904,1767999041609,-2000.0,0.00017036,2]
[401161905,1767999041619,-250.0,0.00017036,2]
[401161906,1767999041940,-1000.0,0.00017036,2]
[401161907,1767999041950,-2000.0,0.00017036,2]
[401161908,1767999041961,-250.0,0.00017036,2]
[401161909,1767999041970,-2000.0,0.00017036,2]
[401161910,1767999041980,-250.0,0.00017036,2]
[401161911,1767999041990,-250.0,0.00017036,2]
[401161912,1767999041999,-250.0,0.00017036,2]
[401161913,1767999042010,-250.0,0.00017036,2]
[401161914,1767999042019,-250.0,0.00017036,2]
[401161915,1767999042029,-620.0,0.00017036,2]
[401161916,1767999042038,-219.18437703,0.00017038,2]
[401161917,1767999042048,-1225.2,0.00017041,2]
[401161918,1767999042058,-500.0,0.00017068,2]
[401161919,1767999042067,-4703.98454991,0.00017072,2]
[401161920,1767999042077,-30000.0,0.000171,2]
[401161921,1767999042086,-151.10085397,0.0001717,2]
[401161922,1767999042096,-500.0,0.0001717,2]
[401161923,1767999042105,-500.0,0.0001717,2]
[401161924,1767999042115,-159.10718444,0.00017176,2]
[401161925,1767999042124,-455.32396504,0.00017181,2]
[401161926,1767999042134,-500.0,0.00017225,2]
[401161927,1767999042143,-500.0,0.00017225,2]
[401161928,1767999042153,-150.0,0.0001726,2]
[401161929,1767999042163,-500.0,0.0001728,2]
[401161930,1767999042172,-500.0,0.0001728,2]
[401161931,1767999042181,-6920.32461671,0.00017304,2]
[401161932,1767999042191,-364.92481471,0.00017334,2]
[401161933,1767999042201,-500.0,0.00017334,2]
[401161934,1767999042211,-4703.98454991,0.00017348,2]
[401161935,1767999042220,-500.0,0.00017389,2]
[401161936,1767999042230,-1000.0,0.000174,2]
[401161937,1767999042240,-206.0,0.00017405,2]
[401161938,1767999042249,-500.0,0.00017444,2]
[401161939,1767999042259,-219.18437703,0.00017469,2]
[401161940,1767999042269,-500.0,0.00017499,2]
[401161941,1767999042278,-633.17,0.00017534,2]
[401161942,1767999042287,-500.0,0.00017554,2]
[401161943,1767999042299,-574.12855637,0.00017584,2]
[401161944,1767999042308,-6920.32461671,0.00017602,2]
[401161945,1767999042318,-500.0,0.00017608,2]
[401161946,1767999042327,-500.0,0.00017616,2]
[401161947,1767999042338,-4703.98454991,0.00017624,2]
[401161948,1767999042347,-169.04,0.00017633,2]
[401161949,1767999042357,-7012.36421229,0.0001764,2]
[401161950,1767999042366,-500.0,0.00017663,2]
[401161951,1767999042378,-166.68,0.0001767,2]
[401161952,1767999042388,-151.0,0.00017694,2]
[401161953,1767999042398,-153.2316,0.00017694,2]
[401161954,1767999042408,-151.0,0.00017694,2]
[401161955,1767999042418,-151.0,0.00017694,2]
[401161956,1767999042427,-151.0,0.00017694,2]
[401161957,1767999042436,-151.680834,0.00017694,2]
[401161958,1767999042445,-151.0,0.00017694,2]
[401161959,1767999042455,-151.0,0.00017694,2]
[401161960,1767999042464,-151.0,0.00017694,2]
[401161961,1767999042474,-151.0,0.00017694,2]
[401161962,1767999042484,-207.468592,0.00017694,2]
[401161963,1767999042494,-151.0,0.00017694,2]
[401161964,1767999042503,-151.0,0.00017694,2]
[401161965,1767999042513,-151.0,0.00017694,2]
[401161966,1767999042523,-151.0,0.00017694,2]
[401161967,1767999042532,-151.0,0.00017694,2]
[401161968,1767999042542,-151.0,0.00017694,2]
[401161969,1767999042551,-151.0,0.00017694,2]
[401161970,1767999042561,-151.0,0.00017694,2]
[401161971,1767999042570,-151.0,0.00017694,2]
[401161972,1767999042580,-151.0,0.00017694,2]
[401161973,1767999042589,-151.0,0.00017694,2]
[401161974,1767999042599,-151.0,0.00017694,2]
[401161975,1767999042609,-151.0,0.00017694,2]
[401161976,1767999042619,-151.0,0.00017694,2]
[401161977,1767999042628,-151.0,0.00017694,2]
[401161978,1767999042638,-157.112862,0.00017694,2]
[401161979,1767999042647,-242.456146,0.00017694,2]
[401161980,1767999042656,-183.936771,0.00017694,2]
[401161981,1767999042666,-395.664357,0.00017694,2]
[401161982,1767999042675,-183.936771,0.00017694,2]
[401161983,1767999042685,-395.664357,0.00017694,2]
[401161984,1767999042695,-183.936771,0.00017694,2]
[401161985,1767999042705,-395.664357,0.00017694,2]
[401161986,1767999042714,-183.936771,0.00017694,2]
[401161987,1767999042723,-395.664357,0.00017694,2]
[401161989,1767999042733,-151.0,0.00017694,2]
[401161991,1767999042743,-964.69,0.00017703,2]
[401161993,1767999042752,-500.0,0.00017718,2]
[401161994,1767999042761,-150.0,0.00017726,2]
[401161995,1767999042770,-4190.04146354,0.0001773,2]
[401161996,1767999042780,-6709.59935273,0.0001773,2]
[401161997,1767999042790,-4190.04146351,0.00017764,2]
[401161998,1767999042800,-500.0,0.00017773,2]
[401161999,1767999042809,-206.0,0.00017778,2]
[401162000,1767999042819,-4190.04146351,0.00017798,2]
[401162001,1767999042829,-2000.0,0.000178,2]
[401162002,1767999042839,-151.0,0.00017805,2]
[401162003,1767999042849,-5999.99999,0.0001782,2]
[401162004,1767999042859,-6000.0,0.0001782,2]
[401162005,1767999042868,-500.0,0.00017828,2]
[401162006,1767999042877,-22119.43413187,0.0001783,2]
[401162007,1767999042887,-6000.0,0.0001783,2]
[401162008,1767999042897,-4190.04146351,0.00017832,2]
[401162009,1767999042906,-200.0,0.00017855,2]
[401162010,1767999042917,-2000.0,0.00017856,2]
[401162011,1767999042926,-200.0,0.00017856,2]
[401162012,1767999042936,-200.0,0.00017856,2]
[401162013,1767999042945,-206.0,0.00017859,2]
[401162014,1767999042955,-6000.0,0.0001786,2]
[401162015,1767999042964,-4190.04146351,0.00017866,2]
[401162016,1767999042975,-6000.0,0.0001788,2]
[401162017,1767999042984,-518.0,0.00017882,2]
[401162018,1767999042993,-206.0,0.00017884,2]
[401162019,1767999043003,-25000.0,0.00017891,3]
[401162020,1767999043012,-203.20327401,0.000179,2]
[401162021,1767999043021,-10000.0,0.000179,2]
[401162022,1767999043031,-25000.0,0.000179,3]
[401162023,1767999043040,-380.089,0.000179,2]
[401162024,1767999043050,-10129.04011648,0.000179,3]
[401162025,1767999043060,-151.0,0.000179,2]
[401162026,1767999043070,-151.0,0.000179,2]
[401162027,1767999043079,-151.0,0.000179,2]
[401162028,1767999043089,-6920.32461671,0.000179,2]
[401162029,1767999043099,-290.85072,0.000179,2]
[401162030,1767999043109,-151.0,0.000179,2]
[401162031,1767999043119,-290.85072,0.000179,2]
[401162032,1767999043129,-290.85072,0.000179,2]
[401162033,1767999043138,-290.85072,0.000179,2]
[401162034,1767999043147,-1598.51059064,0.000179,2]
[401162035,1767999043157,-1598.51059064,0.000179,2]
[401162036,1767999043167,-4703.98454991,0.000179,2]
[401162037,1767999043176,-1598.51059064,0.000179,2]
[401162038,1767999043186,-1598.51059064,0.000179,2]